fUST/lending_fUST_20250109
["ID","MTS","AMOUNT","RATE_DAILY","PERIOD"]
[348264297,1736425846390,-509.36238768,0.00022067,2]
[348264299,1736425846400,-586.30237927,0.00022067,2]
[348264301,1736425846409,-500.0,0.00022067,2]
[348264303,1736425846419,-173.28589385,0.00022067,2]
[348264305,1736425846428,-500.0,0.00022067,2]
[348264307,1736425846437,-500.0,0.00022067,2]
[348264309,1736425846447,-500.0,0.00022067,2]
[348264311,1736425846457,-500.0,0.00022067,2]
[348264313,1736425846466,-500.0,0.00022067,2]
[348264315,1736425846475,-500.0,0.00022067,2]
[348264317,1736425846485,-500.0,0.00022067,2]
[348264319,1736425846495,-500.0,0.00022067,2]
[348264321,1736425846504,-500.0,0.00022067,2]
[348264323,1736425846513,-500.0,0.00022067,2]
[348264325,1736425846522,-500.0,0.00022067,2]
[348264327,1736425846531,-500.0,0.00022067,2]
[348264329,1736425846541,-500.0,0.00022067,2]
[348264330,1736425846550,-500.0,0.00022067,2]
[348264331,1736425846560,-500.0,0.00022067,2]
[348264332,1736425846569,-500.0,0.00022067,2]
[348264333,1736425846580,-500.0,0.00022067,2]
[348264334,1736425846589,-500.0,0.00022067,2]
[348264335,1736425846599,-500.0,0.00022067,2]
[348264336,1736425846608,-500.0,0.00022067,2]
[348264337,1736425846617,-500.0,0.00022067,2]
[348264338,1736425846627,-500.0,0.00022067,2]
[348264339,1736425846637,-500.0,0.00022067,2]
[348264340,1736425846646,-500.0,0.00022067,2]
[348264341,1736425846657,-500.0,0.00022067,2]
[348264342,1736425846666,-500.0,0.00022067,2]
[348264343,1736425846675,-500.0,0.00022067,2]
[348264344,1736425846684,-500.0,0.00022067,2]
[348264345,1736425846694,-500.0,0.00022067,2]
[348264346,1736425846703,-500.0,0.00022067,2]
[348264348,1736425846712,-500.0,0.00022067,2]
[348264350,1736425846722,-500.0,0.00022067,2]
[348264352,1736425846732,-500.0,0.00022067,2]
[348264354,1736425846741,-500.0,0.00022067,2]
[348264356,1736425846751,-500.0,0.00022067,2]
[348264358,1736425846762,-500.0,0.00022067,2]
[348264360,1736425846771,-500.0,0.00022067,2]
[348264363,1736425846788,-500.0,0.00022067,2]
[348264365,1736425846800,-500.0,0.00022067,2]
[348264367,1736425846810,-500.0,0.00022067,2]
[348264369,1736425846819,-496.84453471,0.00022067,2]
[348264371,1736425846829,-500.0,0.00022067,2]
[348264373,1736425846838,-500.0,0.00022067,2]
[348264375,1736425846848,-500.0,0.00022067,2]
[348264377,1736425846858,-500.0,0.00022067,2]
[348264379,1736425846867,-500.0,0.00022068,3]
[348264381,1736425846877,-500.0,0.00022068,3]
[348264383,1736425846886,-500.0,0.00022068,3]
[348264385,1736425846895,-500.0,0.00022068,3]
[348264387,1736425846904,-500.0,0.00022069,2]
[348264389,1736425846913,-500.0,0.00022069,3]
[348264391,1736425846923,-500.0,0.00022069,3]
[348264394,1736425846933,-500.0,0.00022069,3]
[348264396,1736425846943,-500.0,0.00022069,3]
[348264397,1736425846953,-500.0,0.00022069,3]
[348264399,1736425846963,-500.0,0.00022069,3]
[348264401,1736425846973,-500.0,0.00022069,3]
[348264403,1736425846982,-500.0,0.00022069,3]
[348264405,1736425846991,-506.38171243,0.00022069,3]
[348264407,1736425847001,-500.0,0.00022069,3]
[348264409,1736425847009,-500.0,0.00022069,3]
[348264411,1736425847018,-500.0,0.00022069,3]
[348264413,1736425847028,-500.0,0.00022069,3]
[348264415,1736425847037,-500.0,0.00022069,3]
[348264417,1736425847047,-500.0,0.00022069,3]
[348264419,1736425847057,-162.68894471,0.00022069,2]
[348264421,1736425847066,-498.8139607,0.00022069,2]
[348264423,1736425847076,-526.7,0.00022069,3]
[348264425,1736425847085,-233.821,0.0002207,2]
[348264427,1736425847095,-500.0,0.0002207,3]
[348264429,1736425847105,-500.0,0.0002207,3]
[348264431,1736425847114,-500.0,0.0002207,3]
[348264433,1736425847124,-500.0,0.0002207,3]
[348264435,1736425847133,-500.0,0.0002207,3]
[348264437,1736425847142,-500.0,0.0002207,3]
[348264439,1736425847152,-501.9716037,0.0002207,3]
[348264441,1736425847161,-500.0,0.0002207,3]
[348264443,1736425847171,-500.0,0.0002207,3]
[348264445,1736425847180,-322.76139914,0.0002207,3]
[348264447,1736425847190,-500.0,0.0002207,3]
[348264449,1736425847199,-506.53060748,0.0002207,3]
[348264451,1736425847208,-500.0,0.0002207,3]
[348264453,1736425847217,-500.0,0.0002207,3]
[348264455,1736425847227,-500.0,0.0002207,3]
[348264457,1736425847237,-500.0,0.0002207,3]
[348264459,1736425847247,-500.0,0.0002207,3]
[348264461,1736425847257,-500.0,0.0002207,3]
[348264463,1736425847266,-502.24719501,0.0002207,3]
[348264465,1736425847275,-500.0,0.0002207,3]
[348264467,1736425847284,-500.0,0.0002207,3]
[348264469,1736425847293,-500.0,0.0002207,3]
[348264471,1736425847303,-500.0,0.0002207,3]
[348264473,1736425847313,-500.7636887,0.0002207,3]
[348264476,1736425847324,-500.0,0.0002207,3]
[348264477,1736425847337,-500.0,0.0002207,3]
[348264480,1736425847348,-500.0,0.0002207,3]
[348264482,1736425847357,-500.0,0.0002207,3]
[348264484,1736425847366,-500.0,0.0002207,3]
[348264486,1736425847375,-500.0,0.0002207,3]
[348264488,1736425847384,-501.1541386,0.0002207,3]
[348264490,1736425847394,-618.948898,0.0002207,3]
[348264492,1736425847403,-500.0,0.0002207,3]
[348264494,1736425847412,-500.0,0.0002207,3]
[348264496,1736425847421,-500.0,0.0002207,3]
[348264498,1736425847439,-500.0,0.0002207,3]
[348264500,1736425847448,-500.0,0.0002207,3]
[348264502,1736425847457,-500.0,0.0002207,3]
[348264504,1736425847467,-500.0,0.0002207,3]
[348264507,1736425847476,-500.0,0.0002207,3]
[348264509,1736425847486,-500.0,0.0002207,3]
[348264510,1736425847497,-500.70709975,0.0002207,3]
[348264513,1736425847507,-500.0,0.0002207,3]
[348264515,1736425847516,-500.0,0.0002207,3]
[348264517,1736425847525,-500.0,0.0002207,3]
[348264519,1736425847535,-500.0,0.0002207,3]
[348264521,1736425847544,-500.0,0.0002207,3]
[348264523,1736425847556,-500.0,0.0002207,3]
[348264525,1736425847565,-425.77290614,0.0002207,3]
[348264527,1736425847576,-500.0,0.0002207,3]
[348264529,1736425847587,-500.0,0.0002207,3]
[348264531,1736425847596,-501.90451538,0.0002207,3]
[348264533,1736425847605,-500.0,0.0002207,5]
[348264535,1736425847614,-501.77579928,0.0002207,3]
[348264537,1736425847623,-500.0,0.0002207,3]
[348264539,1736425847632,-501.17546608,0.0002207,3]
[348264541,1736425847642,-544.96636166,0.0002207,3]
[348264542,1736425847651,-542.57,0.0002207,3]
[348264545,1736425847661,-500.0,0.0002207,3]
[348264546,1736425847670,-500.0,0.0002207,3]
[348264548,1736425847679,-500.93744552,0.0002207,3]
[348264550,1736425847689,-541.49171132,0.0002207,3]
[348264552,1736425847698,-500.0,0.0002207,3]
[348264554,1736425847707,-500.0,0.0002207,3]
[348264556,1736425847717,-500.0,0.0002207,3]
[348264558,1736425847726,-505.8179829,0.0002207,3]
[348264560,1736425847735,-500.0,0.0002207,3]
[348264562,1736425847746,-500.0,0.0002207,3]
[348264564,1736425847755,-500.0,0.0002207,3]
[348264566,1736425847765,-500.0,0.0002207,3]
[348264568,1736425847774,-491.81790527,0.0002207,3]
[348264581,1736425847883,-500.0,0.0002207,3]
[348264583,1736425847892,-500.0,0.0002207,3]
[348264585,1736425847901,-500.0,0.0002207,3]
[348264587,1736425847910,-513.6785737,0.0002207,3]
[348264589,1736425847919,-500.0,0.0002207,3]
[348264591,1736425847928,-500.0,0.0002207,3]
[348264593,1736425847937,-232.82306357,0.0002207,3]
[348264595,1736425847946,-314.82676322,0.0002207,3]
[348264597,1736425847956,-487.20387669,0.0002207,3]
[348264599,1736425847965,-500.0,0.0002207,3]
[348264601,1736425847974,-500.0,0.0002207,3]
[348264603,1736425847983,-500.0,0.0002207,3]
[348264605,1736425847993,-500.0,0.0002207,3]
[348264607,1736425848003,-503.71390737,0.0002207,3]
[348264609,1736425848013,-500.0,0.0002207,3]
[348264611,1736425848022,-500.0,0.0002207,3]
[348264613,1736425848031,-500.0,0.0002207,3]
[348264615,1736425848041,-500.0,0.0002207,3]
[348264617,1736425848051,-500.0,0.0002207,3]
[348264619,1736425848061,-500.0,0.0002207,3]
[348264621,1736425848070,-500.0,0.0002207,3]
[348264623,1736425848080,-555.41835795,0.0002207,3]
[348264625,1736425848089,-635.67,0.0002207,3]
[348264627,1736425848099,-501.55256837,0.0002207,3]
[348264629,1736425848109,-500.0,0.0002207,3]
[348264631,1736425848118,-500.0,0.0002207,3]
[348264633,1736425848127,-500.0,0.0002207,3]
[348264635,1736425848137,-500.76587331,0.0002207,3]
[348264637,1736425848146,-502.73923988,0.0002207,3]
[348264639,1736425848156,-500.0,0.0002207,3]
[348264641,1736425848166,-500.0,0.0002207,3]
[348264643,1736425848176,-500.0,0.0002207,3]
[348264645,1736425848185,-500.0,0.0002207,3]
[348264647,1736425848195,-500.0,0.0002207,3]
[348264649,1736425848204,-500.0,0.0002207,3]
[348264651,1736425848213,-500.0,0.0002207,3]
[348264653,1736425848223,-500.0,0.0002207,3]
[348264656,1736425848232,-500.0,0.0002207,3]
[348264657,1736425848241,-502.733197,0.0002207,3]
[348264660,1736425848251,-500.0,0.0002207,3]
[348264662,1736425848261,-500.0,0.0002207,3]
[348264664,1736425848270,-500.0,0.0002207,3]
[348264666,1736425848279,-500.0,0.0002207,3]
[348264668,1736425848289,-500.0,0.0002207,3]
[348264669,1736425848298,-500.0,0.0002207,3]
[348264672,1736425848308,-500.0,0.0002207,3]
[348264674,1736425848317,-642.62519808,0.0002207,3]
[348264676,1736425848326,-503.10985476,0.0002207,3]
[348264678,1736425848335,-500.0,0.0002207,3]
[348264680,1736425848344,-502.8656704,0.0002207,3]
[348264681,1736425848353,-500.0,0.0002207,3]
[348264683,1736425848362,-535.97,0.0002207,3]
[348264685,1736425848371,-510.96916891,0.0002207,3]
[348264687,1736425848381,-500.0,0.0002207,3]
[348264689,1736425848390,-500.0,0.0002207,3]
[348264691,1736425848399,-608.55116999,0.0002207,3]
[348264693,1736425848409,-500.0,0.0002207,3]
[348264695,1736425848418,-500.0,0.0002207,3]
[348264697,1736425848427,-503.80891113,0.0002207,3]
[348264700,1736425848436,-234.46264604,0.0002207,3]
[348264702,1736425848445,-503.00266662,0.0002207,3]
[348264704,1736425848455,-502.71180506,0.0002207,3]
[348264706,1736425848464,-500.0,0.0002207,3]
[348264707,1736425848473,-500.0,0.0002207,3]
[348264709,1736425848483,-500.0,0.0002207,3]
[348264711,1736425848492,-500.0,0.0002207,3]
[348264713,1736425848502,-500.0,0.0002207,3]
[348264715,1736425848511,-157.05954367,0.0002207,3]
[348264717,1736425848521,-502.89907346,0.0002207,3]
[348264719,1736425848529,-500.0,0.0002207,3]
[348264721,1736425848539,-502.93336818,0.0002207,3]
[348264723,1736425848549,-502.66409176,0.0002207,3]
[348264725,1736425848558,-500.0,0.0002207,3]
[348264727,1736425848568,-333.51171561,0.0002207,3]
[348264729,1736425848579,-501.83909521,0.0002207,3]
[348264731,1736425848590,-181.75132204,0.0002207,3]
[348264733,1736425848600,-500.0,0.0002207,3]
[348264735,1736425848609,-500.0,0.0002207,3]
[348264737,1736425848619,-500.0,0.0002207,3]
[348264739,1736425848628,-500.0,0.0002207,3]
[348264741,1736425848637,-500.0,0.0002207,3]
[348264743,1736425848646,-503.00481932,0.0002207,3]
[348264745,1736425848658,-500.0,0.0002207,3]
[348264747,1736425848667,-498.03574134,0.0002207,3]
[348264749,1736425848676,-500.0,0.0002207,3]
[348264751,1736425848686,-500.0,0.0002207,3]
[348264753,1736425848695,-500.0,0.0002207,3]
[348264755,1736425848704,-500.0,0.0002207,3]
[348264757,1736425848713,-500.0,0.0002207,3]
[348264760,1736425848723,-500.0,0.0002207,3]
[348264762,1736425848732,-500.0,0.00022071,3]
[348264763,1736425848741,-500.0,0.00022071,3]
[348264765,1736425848751,-500.0,0.00022071,3]
[348264768,1736425848760,-500.0,0.00022071,3]
[348264769,1736425848770,-500.0,0.00022071,3]
[348264772,1736425848780,-500.0,0.00022071,3]
[348264774,1736425848789,-500.0,0.00022071,3]
[348264776,1736425848799,-500.0,0.00022071,3]
[348264778,1736425848808,-500.0,0.00022071,3]
[348264780,1736425848817,-500.0,0.00022071,3]
[348264782,1736425848826,-542.27,0.00022071,3]
[348264784,1736425848835,-500.0,0.00022071,3]
[348264786,1736425848844,-500.0,0.00022087,3]
[348264788,1736425848853,-557.259,0.000221,2]
[348264790,1736425848862,-523.04,0.00022144,3]
[348264792,1736425848871,-500.0,0.00022144,3]
[348264794,1736425848880,-500.0,0.00022144,3]
[348264795,1736425848890,-500.0,0.00022144,3]
[348264797,1736425848900,-500.0,0.00022144,3]
[348264800,1736425848910,-500.0,0.00022144,3]
[348264802,1736425848919,-500.0,0.00022144,3]
[348264804,1736425848929,-500.0,0.00022144,3]
[348264806,1736425848946,-500.0,0.00022144,3]
[348264808,1736425848965,-202.23765207,0.00022342,3]
[348264810,1736425848988,-500.0,0.00022342,3]
[348264812,1736425849015,-238.38,0.00022342,3]
[348264814,1736425849040,-500.0,0.00022342,3]
[348264816,1736425849065,-500.0,0.00022343,2]
[348264818,1736425849086,-162.31359421,0.00022343,3]
[348266027,1736426263489,247.897762,0.00013973,2]
[348266032,1736426828162,-353.91834257,0.0001943,2]
[348266033,1736426833138,-146.08165743,0.0001943,2]
[348266034,1736426833161,-466.58653521,0.00019819,2]
[348266035,1736426841106,-55.46817329,0.00019819,2]
[348266036,1736426841128,-188.541837,0.00019955,2]
[348266037,1736426841149,-340.54420473,0.0001997,2]
[348266038,1736426841171,-300.0,0.00019998,2]
[348266039,1736426841193,-139.89185931,0.00019999,3]
[348266040,1736426847096,-419.45814069,0.00019999,3]
[348266041,1736426847120,-140.19666545,0.00019999,3]
[348266042,1736426854131,-261.43839705,0.00019999,3]
[348266166,1736427036422,-227.02946982,0.000189,2]
[348266169,1736427036431,-302.66710251,0.00019899,2]
[348266171,1736427036441,-500.0,0.00019999,3]
[348266172,1736427036450,-500.0,0.00019999,3]
[348266174,1736427036459,-303.33290355,0.00020098,4]
[348266176,1736427036469,-247.897762,0.00020447,2]
[348266178,1736427036478,-300.0,0.00020999,2]
[348266179,1736427036488,-994.98,0.00021,5]
[348266180,1736427036501,-500.0,0.00021,5]
[348266181,1736427036510,-500.0,0.00021,5]
[348266182,1736427036519,-296.05373182,0.00021959,2]
[348266183,1736427036528,-246.706,0.00021966,2]
[348266184,1736427036540,-1331.6866975,0.00021966,2]
[348266186,1736427036549,-153.8,0.00021966,2]
[348266188,1736427036559,-151.0,0.00022048,2]
[348266190,1736427036568,-500.0,0.00022058,2]
[348266192,1736427036577,-500.0,0.00022058,2]
[348266194,1736427036587,-631.57364907,0.00022058,2]
[348266196,1736427036597,-189.39374998,0.00022058,2]
[348266198,1736427036606,-500.0,0.00022058,2]
[348266200,1736427036616,-631.57364907,0.00022058,2]
[348266202,1736427036625,-500.0,0.00022058,2]
[348266204,1736427036634,-500.0,0.00022058,2]
[348266206,1736427036644,-500.0,0.00022058,2]
[348266208,1736427036654,-500.0,0.00022058,2]
[348266211,1736427036663,-631.57364907,0.00022058,2]
[348266213,1736427036673,-500.0,0.00022058,2]
[348266214,1736427036683,-509.36238768,0.00022058,2]
[348266215,1736427036692,-574.42306737,0.00022058,2]
[348266216,1736427036703,-631.57364907,0.00022058,2]
[348266217,1736427036713,-500.0,0.00022058,2]
[348266218,1736427036722,-631.57364907,0.00022058,2]
[348266219,1736427036732,-631.57364907,0.00022058,2]
[348266220,1736427036742,-500.0,0.00022058,2]
[348266221,1736427036751,-631.57364907,0.00022058,2]
[348266222,1736427036761,-631.57364907,0.00022058,2]
[348266223,1736427036771,-500.0,0.00022058,2]
[348266224,1736427036781,-631.57364907,0.00022058,2]
[348266225,1736427036793,-500.0,0.00022058,2]
[348266226,1736427036803,-500.0,0.00022058,2]
[348266227,1736427036812,-631.57364907,0.00022058,2]
[348266228,1736427036822,-631.57364907,0.00022058,2]
[348266229,1736427036831,-500.0,0.00022058,2]
[348266230,1736427036841,-631.57364907,0.00022058,2]
[348266231,1736427036851,-631.57364907,0.00022058,2]
[348266232,1736427036860,-500.0,0.00022058,2]
[348266233,1736427036870,-631.57364907,0.00022058,2]
[348266234,1736427036882,-631.57364907,0.00022058,2]
[348266235,1736427036893,-620.18009875,0.00022058,2]
[348266236,1736427036903,-631.57364907,0.00022058,2]
[348266237,1736427036912,-631.57364907,0.00022058,2]
[348266238,1736427036923,-500.0,0.00022058,2]
[348266239,1736427036932,-631.57364907,0.00022058,2]
[348266240,1736427036942,-631.57364907,0.00022058,2]
[348266241,1736427036952,-631.57364907,0.00022058,2]
[348266242,1736427036962,-500.0,0.00022058,2]
[348266243,1736427036972,-631.57364907,0.00022058,2]
[348266244,1736427036981,-631.57364907,0.00022058,2]
[348266245,1736427036992,-631.57364907,0.00022058,2]
[348266246,1736427037001,-631.57364907,0.00022058,2]
[348266247,1736427037012,-631.57364907,0.00022058,2]
[348266248,1736427037021,-631.57364907,0.00022058,2]
[348266249,1736427037031,-631.57364907,0.00022058,2]
[348266250,1736427037042,-631.57364907,0.00022058,2]
[348266251,1736427037052,-631.57364907,0.00022058,2]
[348266252,1736427037061,-631.57364907,0.00022058,2]
[348266253,1736427037070,-631.57364907,0.00022058,2]
[348266254,1736427037082,-141.64976205,0.00022058,2]
[348266255,1736427037146,-489.92388702,0.00022058,2]
[348266256,1736427037156,-110.07611298,0.00022058,2]
[348266257,1736427037168,-521.49753609,0.00022058,2]
[348266258,1736427037178,-631.57364907,0.00022058,2]
[348266259,1736427037187,-631.57364907,0.00022058,2]
[348266260,1736427037197,-631.57364907,0.00022058,2]
[348266261,1736427037207,-631.57364907,0.00022058,2]
[348266262,1736427037216,-631.57364907,0.00022058,2]
[348266263,1736427037226,-631.57364907,0.00022058,2]
[348266264,1736427037235,-631.57364907,0.00022058,2]
[348266265,1736427037244,-631.57364907,0.00022058,2]
[348266266,1736427037253,-631.57364907,0.00022058,2]
[348266267,1736427037262,-631.57364907,0.00022058,2]
[348266268,1736427037273,-631.57364907,0.00022058,2]
[348266269,1736427037283,-631.57364907,0.00022058,2]
[348266270,1736427037294,-631.57364907,0.00022058,2]
[348266271,1736427037304,-631.57364907,0.00022058,2]
[348266272,1736427037314,-631.57364907,0.00022058,2]
[348266273,1736427037323,-45.82476585,0.00022058,2]
[348266274,1736427037342,-585.74888322,0.00022058,2]
[348266275,1736427037351,-631.57364907,0.00022058,2]
[348266276,1736427037361,-631.57364907,0.00022058,2]
[348266277,1736427037371,-631.57364907,0.00022058,2]
[348266278,1736427037380,-631.57364907,0.00022058,2]
[348266279,1736427037389,-631.57364907,0.00022058,2]
[348266280,1736427037399,-631.57364907,0.00022058,2]
[348266281,1736427037408,-631.57364907,0.00022058,2]
[348266282,1736427037417,-631.57364907,0.00022058,2]
[348266283,1736427037427,-631.57364907,0.00022058,2]
[348266284,1736427037437,-631.57364907,0.00022058,2]
[348266285,1736427037447,-202.23765207,0.0002206,3]
[348266286,1736427037457,-500.0,0.0002206,3]
[348266287,1736427037466,-238.38,0.0002206,3]
[348266288,1736427037476,-500.0,0.0002206,3]
[348266289,1736427037485,-500.0,0.0002206,2]
[348266290,1736427037495,-500.0,0.00022061,3]
[348266291,1736427037504,-316.35,0.00022061,3]
[348266292,1736427037514,-168.31,0.00022061,3]
[348266293,1736427037523,-500.0,0.00022061,3]
[348266294,1736427037532,-500.0,0.00022061,3]
[348266295,1736427037544,-500.0,0.00022061,3]
[348266296,1736427037554,-500.0,0.00022061,3]
[348266297,1736427037563,-500.0,0.00022061,3]
[348266298,1736427037572,-500.0,0.00022061,3]
[348266299,1736427037582,-500.0,0.00022061,3]
[348266300,1736427037591,-500.0,0.00022061,3]
[348266301,1736427037603,-500.0,0.00022063,3]
[348266302,1736427037622,-500.0,0.00022064,3]
[348266303,1736427037631,-500.0,0.00022064,3]
[348266304,1736427037641,-500.0,0.00022064,3]
[348266305,1736427037650,-500.0,0.00022064,3]
[348266306,1736427037660,-500.0,0.00022064,3]
[348266307,1736427037669,-500.0,0.00022064,3]
[348266308,1736427037679,-500.0,0.00022064,3]
[348266309,1736427037688,-250.75313712,0.00022064,3]
[348266310,1736427037698,-500.0,0.00022064,3]
[348266311,1736427037707,-500.0,0.00022064,3]
[348266312,1736427037717,-500.0,0.00022064,3]
[348266313,1736427037726,-500.0,0.00022064,3]
[348266314,1736427037739,-500.0,0.00022064,3]
[348266315,1736427037749,-500.0,0.00022065,3]
[348266317,1736427037758,-523.04,0.00022066,3]
[348266318,1736427037767,-500.0,0.00022067,5]
[348266319,1736427037776,-434.34721668,0.00022067,3]
[348266320,1736427037785,-500.0,0.00022067,3]
[348266321,1736427037796,-500.0,0.00022067,3]
[348266322,1736427037805,-542.27,0.00022067,3]
[348266323,1736427037814,-513.7883702,0.00022067,3]
[348266324,1736427037824,-579.65819933,0.00022067,3]
[348266325,1736427037833,-500.0,0.00022067,3]
[348266327,1736427037843,-500.0,0.00022067,3]
[348266328,1736427037855,-500.0,0.00022067,3]
[348266329,1736427037864,-500.0,0.00022067,3]
[348266330,1736427037874,-500.0,0.00022067,3]
[348266331,1736427037886,-500.0,0.00022067,3]
[348266332,1736427037896,-500.0,0.00022067,3]
[348266333,1736427037906,-500.0,0.00022067,3]
[348266334,1736427037915,-500.0,0.00022067,3]
[348266336,1736427037925,-500.0,0.00022067,3]
[348266338,1736427037934,-250.12079617,0.00022067,3]
[348266340,1736427037944,-500.0,0.00022068,3]
[348266342,1736427037953,-500.0,0.00022068,3]
[348266344,1736427037965,-500.0,0.00022068,3]
[348266346,1736427037975,-500.0,0.00022068,3]
[348266349,1736427037986,-500.0,0.00022068,3]
[348266351,1736427037996,-500.0,0.00022068,3]
[348266353,1736427038005,-500.0,0.00022069,3]
[348266354,1736427038014,-500.0,0.00022069,3]
[348266356,1736427038024,-500.0,0.00022069,3]
[348266359,1736427038033,-500.0,0.00022069,3]
[348266361,1736427038042,-500.0,0.00022069,3]
[348266362,1736427038052,-500.0,0.00022069,3]
[348266364,1736427038062,-547.95570331,0.0002207,3]
[348266367,1736427038071,-500.0,0.0002207,3]
[348266369,1736427038080,-500.0,0.0002207,3]
[348266371,1736427038089,-500.0,0.00022086,3]
[348266373,1736427038099,-581.774,0.000221,2]
[348266375,1736427038109,-554.96,0.00022144,3]
[348266377,1736427038118,-500.0,0.00022144,3]
[348266379,1736427038142,-500.0,0.00022144,3]
[348266381,1736427038152,-509.62451974,0.00022144,3]
[348266383,1736427038162,-221.04056829,0.00022184,2]
[348266385,1736427038171,-500.0,0.00022334,3]
[348266386,1736427038180,-500.0,0.00022334,2]
[348266388,1736427038190,-241.50640579,0.00022335,3]
[348266390,1736427038200,-22.39805738,0.00022335,3]
[348266954,1736427043552,-500.83313617,0.00022061,3]
[348266956,1736427043562,-332.86659219,0.00022061,3]
[348267001,1736427044001,-168.35461262,0.00022061,3]
[348267003,1736427044011,-477.60194262,0.00022335,3]
[348267005,1736427044020,-275.13,0.00022335,3]
[348267007,1736427044029,-332.33348698,0.00022335,3]
[348267009,1736427044041,-280.61651302,0.00022335,3]
[348267011,1736427044052,-523.59,0.00022335,3]
[348267014,1736427044061,-375.03,0.00022335,3]
[348267016,1736427044070,-333.25,0.00022335,3]
[348267017,1736427044080,-500.0,0.00022337,3]
[348267020,1736427044089,-181.37415465,0.00022338,3]
[348267022,1736427044098,-500.0,0.00022341,3]
[348267023,1736427044108,-562.07,0.00022341,3]
[348267025,1736427044117,-500.0,0.00022341,3]
[348267028,1736427044127,-160.79694077,0.00022592,5]
[348267030,1736427044136,-504.0,0.00022608,3]
[348267031,1736427044145,-500.0,0.00022608,2]
[348267033,1736427044155,-571.96366606,0.00022609,3]
[348267036,1736427044164,-500.0,0.00022611,3]
[348267037,1736427044174,-500.0,0.00022616,3]
[348267039,1736427044183,-260.90846449,0.00022752,7]
[348267042,1736427044193,-219.34,0.000228,2]
[348267044,1736427044202,-151.0,0.000228,8]
[348267046,1736427044211,-371.0,0.00022842,2]
[348267047,1736427044220,-500.0,0.00022882,2]
[348267049,1736427044229,-500.0,0.00022885,3]
[348267052,1736427044239,-151.0,0.000229,8]
[348267054,1736427044249,-151.0,0.000229,8]
[348267055,1736427044258,-178.52009132,0.000229,2]
[348267069,1736427044357,-150.0,0.00022962,2]
[348267072,1736427044367,-535.0,0.00022962,2]
[348267073,1736427044377,-2081.0,0.00022962,2]
[348267076,1736427044386,-2317.0,0.00022962,2]
[348267078,1736427044396,-150.098,0.00022962,2]
[348267080,1736427044405,-394.0,0.00022962,2]
[348267082,1736427044414,-349.16977249,0.00022999,2]
[348267083,1736427044423,-7.37634121,0.00023,5]
[348267086,1736427044435,-1172.75,0.00023,5]
[348267237,1736427046369,-528.37773203,0.00023,5]
[348267243,1736427046425,-45247.68009861,0.00023,5]
[348267245,1736427046436,-9677.57946559,0.00023,5]
[348267247,1736427046446,-151.0,0.00023,9]
[348267250,1736427046457,-151.0,0.00023,5]
[348267251,1736427046466,-1915.66616412,0.00023,10]
[348267254,1736427046483,-3221.72833128,0.00023,10]
[348268103,1736427217748,400.0,0.00013973,2]
[348268106,1736427742163,10000.0,0.0001505,2]
[348268107,1736428013312,-500.0,0.00018334,2]
[348268108,1736428013334,-2359.50002764,0.00018457,2]
[348268109,1736428013355,-204.7833708,0.00018557,2]